Workbook

Sheet 指标分配方案
A1: 2016年度研究生企业奖学金、学习优秀奖学金指标分配方案
A2: 序号 | B2: 奖学金名称 | C2: 类型 | D2: 资助总额 | E2: 评选总指标 | F2: 资助 标准 | G2: 地学院 | H2: 石工学院 | I2: 化工学院 | J2: 机械学院 | K2: 信息学院 | L2: 理学院 | M2: 商学院 | N2: 马克思 | O2: 外语学院 | P2: 科研 | Q2: 评选条件 | R2: 报送材料 | S2: 备注
F3: 硕士参评人数 | G3: 275 | H3: 304 | I3: 229 | J3: 188 | K3: 205 | L3: 125 | M3: 106 | N3: 25 | O3: 61 | P3: 158 | Q3: =SUM(G3:P3) -> 1676
F4: 博士参评人数 | G4: 42 | H4: 55 | I4: 34 | J4: 33 | K4: 32 | L4: 24 | M4: 5 | N4: 1 | O4: 0 | P4: 18 | Q4: =SUM(G4:P4) -> 244
F5: 参评总人数 | G5: =G3+G4 -> 317 | H5: =H3+H4 -> 359 | I5: 263 | J5: 221 | K5: 237 | L5: 149 | M5: 111 | N5: 26 | O5: 61 | P5: =P3+P4 -> 176 | Q5: =SUM(Q3:Q4) -> 1920
A6: 1 | B6: 中国石油奖学金 （基金会） | C6: 博士 | D6: =E6*F6 -> ¥12,000 | E6: 2 | F6: ¥6,000 | G6: 1 | H6: 1 | I6: 0 | J6: 0 | K6: 0 | L6: 0 | M6: 0 | N6: 0 | O6: 0 | P6: 0 | Q6: 按照研究生手册上优秀研究生奖学金的评定标准进行评选。 1.全日制非定向档案到校 2.无挂科处分 3.智育成绩排名专业前50%，综合测评成绩排名专业前30% | R6: 纸质版：申请表（两份，签名部分必须为手签，其他可打印） 电子版：汇总表、申请表
C7: 硕士 | D7: ¥84,000 | E7: 14 | F7: ¥6,000 | G7: 2 | H7: 3 | I7: 2 | J7: 2 | K7: 2 | L7: 1 | M7: 1 | N7: 0 | O7: 0 | P7: 1
A8: 2 | B8: 新奥集团奖学金（基金会） | C8: 博士 | D8: ¥20,000 | E8: 4 | F8: ¥5,000 | G8: 0 | H8: 0 | I8: 1 | J8: 1 | K8: 1 | L8: 1 | M8: 0 | N8: 0 | O8: 0 | P8: 0
C9: 硕士 | D9: ¥130,000 | E9: 26 | F9: ¥5,000 | G9: 4 | H9: 4 | I9: 4 | J9: 3 | K9: 3 | L9: 2 | M9: 2 | N9: 1 | O9: 1 | P9: 2
A10: 3 | B10: 学习优秀奖学金 | C10: 博士 | D10: ¥24,000 | E10: 12 | F10: ¥2,000 | G10: 2 | H10: 2 | I10: 2 | J10: 2 | K10: 2 | L10: 1 | M10: 0 | N10: 0 | O10: 0 | P10: 1 | Q10: 1.全日制非定向档案到校 2.无挂科处分3.智育成绩排名专业前15%综合测评成绩排名专业前60% | R10: 纸质版和电子版汇总表
C11: 硕士 | D11: ¥168,000 | E11: 84 | F11: ¥2,000 | G11: 16 | H11: 15 | I11: 11 | J11: 9 | K11: 10 | L11: 6 | M11: 5 | N11: 1 | O11: 3 | P11: 8
B12: 硕士获奖人数 | G12: =G7+G9+G11 -> 22 | H12: =H7+H9+H11 -> 22 | I12: =I7+I9+I11 -> 17 | J12: =J7+J9+J11 -> 14 | K12: 15 | L12: 9 | M12: 8 | N12: 2 | O12: 4 | P12: 11
B13: 硕士获奖比例 | G13: =G12/G3 -> 8.00% | H13: =H12/H3 -> 7.24% | I13: 7.42% | J13: 7.45% | K13: =K12/K3 -> 7.32% | L13: 7.20% | M13: 7.55% | N13: 8.00% | O13: 6.56% | P13: 6.96%
B14: 博士获奖人数 | G14: =G6+G8+G10 -> 3 | H14: 3 | I14: 3 | J14: 3 | K14: 3 | L14: 2 | M14: 0 | N14: =N6+N8+N10 -> 0 | O14: 0 | P14: 1
B15: 博士获奖比例 | G15: =G14/G4 -> 7.14% | H15: =H14/H4 -> 5.45% | I15: 8.82% | J15: 9.09% | K15: 9.38% | L15: 8.33% | M15: 0.00% | N15: 0.00% | O15: 0.00% | P15: 5.56%
A16: 备注：1.由于设奖单位对获奖学生所在学院和专业的特殊要求，部分学院的获奖比例高于其他学院。2.在不影响其他学院获奖比例的情况下，适当照顾部分人数较少的学院。
